[Event "Czech Open-Rapid 2022"]
[Site "Pardubice"]
[Date "2022.07.20"]
[Round "3.43"]
[White "Juchelka, Marek"]
[Black "Bouska, Jiri"]
[Result "1/2-1/2"]
[ECO "B30"]
[WhiteElo "1803"]
[BlackElo "2157"]
[Annotator "TA"]
[PlyCount "141"]
[EventDate "2022.07.20"]
[EventType "swiss"]
[EventCountry "CZE"]
[SourceTitle "playchess.com"]
[Source "ChessBase"]
[SourceQuality "1"]
[TimeControl "1200+10"]

{[%evp 9,141,-19,60,19,25,-8,-3,-26,-30,-31,-17,-29,-7,-31,14,-1,-4,4,23,10,43,27,36,10,9,-8,36,30,29,25,34,38,29,18,92,86,114,110,116,13,22,0,60,52,93,30,107,103,150,116,116,123,134,127,137,135,138,123,129,111,133,106,104,0,112,112,119,108,120,93,112,0,120,120,119,116,112,95,93,99,100,97,112,90,189,169,150,87,224,205,389,229,310,308,364,341,445,402,421,263,264,266,264,266,268,268,264,265,245,249,271,268,266,249,258,247,258,0,237,0,246,230,227,94,94,94,94,94,94,94,94,0,0,0]} 1. e4 {[%emt 0:00:07]} c5 {[%emt 0:00:02]} 2. Nf3 {[%emt 0:00:08]} Nc6 {[%emt 0:00:01]} 3. c3 {[%emt 0:00:03]} d5 {[%emt 0:00:08]} 4. exd5 {[%emt 0:00:02]} Qxd5 {[%emt 0:00:02]} 5. Be2 {[%emt 0:00:47]} g6 {[%emt 0:00:20]} (5... e5 $11) 6. O-O {[%emt 0:00:39] B22: Sicilian: 2 c3.} Bg7 {[%emt 0:00:03] Prevents d4.} 7. d3 {[%emt 0:00:02]} Nf6 {[%emt 0:00:09]} 8. h3 {[%emt 0:00:05]} O-O {[%emt 0:00:14]} 9. Be3 {[%emt 0:00:02] [#]} Bf5 $146 {[%emt 0:00:16]} ({Predecessor:} 9... b6 10. d4 cxd4 11. Nxd4 Ne5 12. Nf3 Bb7 13. Nh4 Qc6 14. Nf3 Nc4 15. Bxc4 Qxc4 16. Nfd2 Qc6 17. Nf3 Qb5 18. Bc1 Rad8 19. Nbd2 Bh6 20. Qc2 Rd3 21. Nd4 {0-1 (21) Lakota,I (1750)-Mrndjic,M (2154) Sarajevo 2018}) 10. Nh4 {[%emt 0:00:46]} Be6 {[%emt 0:00:13]} 11. Nd2 {[%emt 0:00:21]} Ne5 {[%emt 0:00:34]} 12. Nb3 {[%emt 0:00:22]} b6 {[%emt 0:00:34]} 13. d4 {[%emt 0:02:31]} cxd4 {[%emt 0:00:33]} 14. Nxd4 {[%emt 0:00:02]} Rfd8 {[%emt 0:00:43]} 15. Qc1 {[%emt 0:01:11]} Rac8 {[%emt 0:03:22]} 16. Nxe6 {[%emt 0:00:31]} Qxe6 {[%emt 0:00:09]} 17. Nf3 {[%emt 0:00:06]} Nxf3+ {[%emt 0:00:45]} (17... Nc4 {is more complex.} 18. Re1 Nxe3 19. Ba6 Rc5) 18. Bxf3 {[%emt 0:00:02]} Qf5 {[%emt 0:03:41]} 19. Re1 {[%emt 0:02:03]} e5 {[%emt 0:00:41]} 20. Bg5 {[%emt 0:00:38][%cal Of3g4] A strong pair of Bishops.} Re8 {[%emt 0:00:10]} 21. Qe3 {[%emt 0:01:51]} h6 {[%emt 0:04:21]} (21... h5 $11) 22. Bxh6 $16 {[%emt 0:02:22]} e4 {[%emt 0:00:07]} 23. Bxg7 {[%emt 0:01:25]} (23. Bd1 {is interesting.} Nd5 24. Qg5 Bxh6 25. Qxh6 Qf4 26. Qxf4 Nxf4 27. Ba4) 23... Kxg7 {[%emt 0:00:08]} 24. Bd1 {[%emt 0:00:33]} (24. Be2 $16) 24... Rcd8 $1 $11 {[%emt 0:00:30]} 25. Bc2 {[%emt 0:00:22] Against Rd3} (25. g4 {seems wilder.} Qb5 26. Rb1 Nd5 27. Qd4+) 25... Qb5 {[%emt 0:00:49]} ({Better is} 25... Nd5 $1 $11 26. Qg3 (26. Qd4+ Nf6 $14) 26... Nf4) 26. b3 {[%emt 0:01:04]} Qc6 {[%emt 0:01:59]} 27. Rad1 {[%emt 0:00:53]} (27. c4 $16) 27... Rc8 {[%emt 0:00:50]} (27... Nd5 $1 $11 {remains equal.} 28. Bxe4 Nxe3 29. Bxc6 Rxd1 30. Rxd1 Nxd1 31. Bxe8 Nxc3) 28. c4 $16 {[%emt 0:01:21]} Re6 {[%emt 0:00:51]} (28... b5 $142) 29. Bb1 {[%emt 0:00:32]} Rce8 {[%emt 0:00:30]} 30. Rd4 {[%emt 0:02:04]} Qc7 {[%emt 0:01:07]} 31. Qc3 {[%emt 0:00:52]} Kg8 {[%emt 0:00:26]} 32. Re3 {[%emt 0:00:16]} Qf4 {[%emt 0:00:40]} 33. Qe1 {[%emt 0:00:26]} a5 {[%emt 0:00:16]} 34. Qe2 {[%emt 0:00:33]} Re5 {[%emt 0:00:21]} 35. Rd6 {[%emt 0:00:20]} R5e6 {[%emt 0:00:06]} 36. Rd4 {[%emt 0:00:15]} (36. Rxe6 $16 Rxe6 37. Qe1) 36... Qe5 {[%emt 0:00:08]} (36... Re5 $1 $11) 37. Qd2 {[%emt 0:00:00]} Qc5 {[%emt 0:00:12]} 38. Qd1 {[%emt 0:00:16]} Re5 {[%emt 0:00:10]} 39. Rd6 {[%emt 0:00:07]} R5e6 {[%emt 0:00:00]} 40. Rd4 {[%emt 0:00:01]} (40. Rxe6 $16 Rxe6 41. Qd2) 40... b5 {[%emt 0:00:10]} (40... Re5 $1 $11 {keeps the balance.}) 41. Qd2 {[%emt 0:00:26]} bxc4 {[%emt 0:00:14]} 42. Rxc4 {[%emt 0:00:01][%cal Bd4c4,Bc4c5,Bc5a5,Ba5a6][%mdl 32]} Qg5 {[%emt 0:00:18]} 43. Qd4 {[%emt 0:00:13]} Qf4 {[%emt 0:00:10] [#] aiming for ...Rd6.} 44. g3 {[%emt 0:00:20]} Qf5 {[%emt 0:00:10]} 45. Kg2 {[%emt 0:00:01]} R6e7 {[%emt 0:00:10]} 46. Rc5 {[%emt 0:00:02]} Qe6 {[%emt 0:00:10]} (46... Re5 $16 47. g4 Qf4) 47. Rxa5 {[%emt 0:00:16]} Rd7 {[%emt 0:00:09] [#]} 48. Qc4 {[%emt 0:00:01]} (48. Qb2 $142 $1) 48... Qe7 {[%emt 0:00:13]} (48... Rd2 $16) 49. b4 {[%emt 0:00:09]} Rb7 $2 {[%emt 0:00:13]} (49... Qd8 {is a better defense.} 50. a3 (50. Bxe4 Rd4 $15) 50... Rd4) 50. b5 {[%emt 0:00:01]} (50. Rc5 $142) 50... Rc7 {[%emt 0:00:03]} 51. Qb3 {[%emt 0:00:01]} Qc5 {[%emt 0:00:06]} 52. Ra6 {[%emt 0:00:02]} Qe5 {[%emt 0:00:09]} 53. b6 {[%emt 0:00:02]} Rb7 {[%emt 0:00:14]} 54. Ra4 {[%emt 0:00:18] Inhibits Qd4.} Qc5 {[%emt 0:00:14]} 55. Rb4 {[%emt 0:00:03] Hoping for Rb5.} ({Resist} 55. Bxe4 Rxb6 56. Qc4 Qxc4 57. Rxc4 Rb2 $18) 55... Re6 {[%emt 0:00:06]} 56. Bxe4 ({Don't do} 56. Rc3 $6 Qd6 $16) 56... Rbxb6 57. Rxb6 {[%emt 0:00:05]} Rxb6 {[%emt 0:00:00]} 58. Qd3 {[%emt 0:00:08]} Rd6 {[%emt 0:00:02]} 59. Qe2 {[%emt 0:00:04]} Qb4 {[%emt 0:00:16]} 60. Bd3 {[%emt 0:00:28]} Kg7 {[%emt 0:00:20]} 61. Qc2 {[%emt 0:00:24]} Qb7+ {[%emt 0:00:10]} 62. Be4 {[%emt 0:00:20]} Qb4 {[%emt 0:00:12]} 63. Bd3 {[%emt 0:00:12]} Qb7+ $1 {[%emt 0:00:03]} 64. Be4 {[%emt 0:00:01]} Qb4 $1 {[%emt 0:00:01]} 65. Bf3 {[%emt 0:00:21]} Rd2 {[%emt 0:00:25]} 66. Qc3 {[%emt 0:00:01]} (66. Qb3 $18 Qxb3 67. axb3) 66... Qxc3 {[%emt 0:00:14]} 67. Rxc3 {[%emt 0:00:02] a4 is the strong threat.} Rxa2 {[%emt 0:00:02]} 68. h4 {[%emt 0:00:09]} Rb2 {[%emt 0:00:23]} 69. g4 {[%emt 0:00:08]} Rb4 {[%emt 0:00:04]} 70. Kg3 {[%emt 0:00:04]} ({White should try} 70. Kh3 $16) 70... Rxg4+ $1 $11 {[%emt 0:00:07]} 71. Bxg4 {[%emt 0:00:17] Weighted Error Value: White=0.24 (precise) /Black=0.35} 1/2-1/2

[Event "Czech Open-Rapid 2022"]
[Site "Pardubice"]
[Date "2022.07.20"]
[Round "3.44"]
[White "Vorel, Bohuslav"]
[Black "Postl, Petr"]
[Result "0-1"]
[ECO "B08"]
[WhiteElo "1605"]
[BlackElo "1900"]
[Annotator "TA"]
[PlyCount "80"]
[EventDate "2022.07.20"]
[EventType "swiss"]
[EventCountry "CZE"]
[SourceTitle "playchess.com"]
[Source "ChessBase"]
[SourceQuality "1"]
[TimeControl "1200+10"]

{[%evp 11,80,27,54,12,14,-11,13,12,30,25,42,26,163,190,176,165,197,-43,-25,-92,-97,-92,0,-85,-93,-101,-100,-101,-85,-131,-96,-97,-109,-124,-123,-112,-120,-99,-33,-228,-65,-230,-210,-203,-175,-205,-200,-224,-227,-214,-210,-215,-191,-361,-341,-339,-316,-357,-277,-355,-329,-382,-375,-377,-390,-380,-379,-401,-375,-519,-486]} 1. e4 {[%emt 0:00:02]} d6 {[%emt 0:00:07]} 2. d4 {[%emt 0:00:03]} Nf6 {[%emt 0:00:02]} 3. Nc3 {[%emt 0:00:07]} g6 {[%emt 0:00:01]} 4. Nf3 {[%emt 0:00:17]} Bg7 {[%emt 0:00:02]} 5. Be2 {[%emt 0:00:05]} O-O {[%emt 0:00:13]} 6. O-O {[%emt 0:00:04]} c6 {[%emt 0:00:06]} 7. e5 {[%emt 0:01:01] B08: Pirc Defence: Classical System.} dxe5 {[%emt 0:00:26]} 8. dxe5 {[%emt 0:00:03]} Ng4 {[%emt 0:00:48]} 9. Bf4 {[%emt 0:00:25] The position is equal.} Nd7 {[%emt 0:00:27]} 10. e6 $1 {[%emt 0:03:39]} fxe6 {[%emt 0:00:21]} 11. Ng5 {[%emt 0:00:02][%csl LRe6,LRg4][%mdl 64] [#] Discovered Attack} Ndf6 $146 {[%emt 0:03:57]} ({Predecessor:} 11... Nde5 12. Qxd8 Rxd8 13. Rad1 Rf8 14. Bg3 h6 15. Nge4 h5 16. Rfe1 Nh6 17. Nc5 b6 {1-0 (87) Klosterfrau (2627)-WieNie (2604) Playchess.com INT 2007}) 12. Bxg4 $18 {[%emt 0:00:26]} Nxg4 {[%emt 0:00:01]} 13. Qxg4 {[%emt 0:00:10]} e5 {[%emt 0:00:01] [#]} 14. Ne6 $2 {[%emt 0:01:13]} (14. Qh4 $1 $18 {[%csl Gg5][%cal Rh4h7]} h6 15. Bxe5 $1 {[%mdl 512]} hxg5 16. Qc4+ (16. Qxg5 $2 Rf5 $19) 16... Kh7 17. Rfe1) 14... exf4 {[%emt 0:01:37]} 15. Rfe1 {[%emt 0:01:02]} (15. Qe2 $11 Bxe6 16. Qxe6+ Kh8 17. Rad1) 15... Bxc3 $17 {[%emt 0:05:36]} 16. bxc3 {[%emt 0:00:07]} Qd6 {[%emt 0:02:00]} (16... Qd5 $17 {White must now prevent ...Rf6.} 17. Qe2 Bxe6 18. Qxe6+ Qxe6 19. Rxe6 Rfe8) 17. Qe2 {[%emt 0:00:20]} (17. Rad1 $11 {remains equal.} Bxe6 18. Rxe6) 17... Bxe6 {[%emt 0:00:04]} 18. Qxe6+ {[%emt 0:00:04]} Qxe6 {[%emt 0:00:02]} 19. Rxe6 {[%emt 0:00:01][%mdl 4096] Endgame KRR-KRR} Kf7 {[%emt 0:00:03]} 20. Rae1 {[%emt 0:00:03]} ({White should try} 20. Re4) 20... Rfe8 {[%emt 0:00:10]} 21. R6e4 {[%emt 0:00:30] [#]} e5 $1 {[%emt 0:01:50]} 22. Rxe5 {[%emt 0:00:29]} Rxe5 {[%emt 0:00:03]} 23. Rxe5 {[%emt 0:00:02] KR-KR} Rd8 {[%emt 0:00:12] ( -> ...Rd1+)} 24. Kf1 {[%emt 0:00:23]} Kf6 {[%emt 0:00:12]} (24... Rd1+ $17 25. Re1 Rxe1+ 26. Kxe1 Ke6) 25. Re2 $2 {[%emt 0:00:06]} (25. Re4 $15) 25... Rd5 $2 {[%emt 0:01:25]} (25... Rd1+ $19 26. Re1 Rxe1+ 27. Kxe1 Ke5) 26. c4 $2 {[%emt 0:00:32]} ({Better is} 26. Re4 $15) 26... Rd4 {[%emt 0:02:08]} 27. c5 {[%emt 0:00:20]} Rc4 {[%emt 0:00:11]} 28. Re8 {[%emt 0:00:01]} Rxc2 {[%emt 0:00:04]} 29. Rf8+ {[%emt 0:00:09]} Ke6 {[%emt 0:00:10]} 30. Rxf4 {[%emt 0:00:03]} Rxc5 {[%emt 0:00:03] Threatens to win with ...Rc1+.} ({Stronger than} 30... Rxa2 31. Rb4) 31. Re4+ {[%emt 0:00:17]} Kd6 {[%emt 0:00:13] ...Rc1+ is the strong threat.} 32. Rb4 $2 {[%emt 0:00:18]} (32. Rh4) 32... b5 $19 {[%emt 0:00:07][%cal Bb7b5,Bb5b4][%mdl 32]} 33. Rb2 {[%emt 0:00:02]} Re5 {[%emt 0:00:07]} 34. Rd2+ {[%emt 0:00:05]} Ke6 {[%emt 0:00:11]} 35. g3 {[%emt 0:00:04]} g5 {[%emt 0:00:06]} 36. f3 {[%emt 0:00:16]} a5 {[%emt 0:00:02][%cal Ba7a5,Ba5a4][%mdl 32]} 37. Kf2 {[%emt 0:00:03]} b4 {[%emt 0:00:04]} 38. Rc2 {[%emt 0:00:03]} Kd6 {[%emt 0:00:07]} 39. Rd2+ {[%emt 0:00:09]} Rd5 {[%emt 0:00:01]} 40. Re2 {[%emt 0:00:07]} a4 {[%emt 0:00:06] Quite a comeback for Black.  Weighted Error Value: White=0.57/Black=0.27 (precise)} 0-1

[Event "Czech Open-Rapid 2022"]
[Site "Pardubice"]
[Date "2022.07.21"]
[Round "4.1"]
[White "Korobov, Anton"]
[Black "Neuman, Petr"]
[Result "1-0"]
[ECO "A11"]
[WhiteElo "2692"]
[BlackElo "2378"]
[Annotator "TA"]
[PlyCount "115"]
[EventDate "2022.07.20"]
[EventType "swiss"]
[EventCountry "CZE"]
[SourceTitle "playchess.com"]
[Source "ChessBase"]
[SourceQuality "1"]
[TimeControl "1200+10"]

{[%evp 14,115,13,10,39,46,41,46,47,42,32,33,36,28,34,33,37,45,44,45,40,40,41,34,41,47,72,72,104,95,109,77,148,152,153,64,150,135,140,9,37,0,25,0,0,0,0,0,0,-25,0,-19,0,-14,-14,-47,0,0,7,-23,-18,-17,0,0,0,0,0,0,0,0,0,0,1108,1064,12841,295,289,304,304,243,163,163,497,465,769,754,576,500,12833,2921,12833,12833,12834,12834,12835,12835,12835,12835,12835,5908,12840,12839,12842,12843]} 1. c4 {[%emt 0:00:02]} c6 {[%emt 0:00:03]} 2. Nf3 {[%emt 0:00:09]} d5 {[%emt 0:00:02]} 3. e3 {[%emt 0:00:01]} Nf6 {[%emt 0:00:01]} 4. Nc3 {[%emt 0:00:03]} a6 {[%emt 0:00:04]} 5. h3 {[%emt 0:00:04]} g6 {[%emt 0:00:32]} 6. d4 {[%emt 0:00:11]} Bg7 {[%emt 0:00:02]} 7. Bd3 {[%emt 0:00:12]} O-O {[%emt 0:02:15]} 8. O-O {[%emt 0:01:42]} Bf5 {[%emt 0:00:16] 8...dxc4 is becoming the main line. D94: Grünfeld: 4 Nf3 Bg7 5 e3.} 9. Bxf5 {[%emt 0:00:15]} gxf5 {[%emt 0:00:02]} 10. Qb3 {[%emt 0:00:02]} Ra7 {[%emt 0:00:09] White is slightly better.} 11. Bd2 {[%emt 0:00:14]} e6 {[%emt 0:00:05]} 12. Rfc1 {[%emt 0:01:05]} Ne4 {[%emt 0:00:55]} 13. cxd5 {[%emt 0:00:13]} cxd5 {[%emt 0:00:53]} 14. Na4 {[%emt 0:00:12]} Nc6 {[%emt 0:01:29] [#]} 15. Bb4 $146 {[%emt 0:00:15]} ({Predecessor:} 15. Be1 Kh8 16. Nc5 Qe7 17. Rc2 Rg8 18. Qb6 Nxc5 19. Qxc5 Qxc5 20. Rxc5 Bf8 21. Rc2 {½-½ (32) Ludvik,T (2202)-Malassagne,R (2305) Prague 2020}) 15... Re8 {[%emt 0:03:16]} 16. Bc5 {[%emt 0:00:04]} Nxc5 {[%emt 0:00:12]} 17. Nxc5 {[%emt 0:00:02]} Na5 {[%emt 0:00:20]} 18. Qa4 {[%emt 0:00:43]} Re7 {[%emt 0:03:27]} 19. Ne5 {[%emt 0:00:39]} Bxe5 {[%emt 0:00:42]} 20. dxe5 {[%emt 0:00:03]} b6 {[%emt 0:00:37]} 21. Nd3 {[%emt 0:00:14] White is more active.} Rec7 {[%emt 0:00:10]} 22. Qf4 {[%emt 0:01:46]} Rc4 {[%emt 0:02:07]} (22... Nc6 $142) 23. Qg3+ $16 {[%emt 0:00:46]} Kh8 {[%emt 0:00:06]} 24. b3 {[%emt 0:00:09]} ({White should try} 24. Rxc4 $1 $16 Nxc4 25. b3) 24... Rxc1+ {[%emt 0:00:14]} ({Better is} 24... Rcc7 $14) 25. Rxc1 {[%emt 0:00:02]} (25. Nxc1 $6 Rc7 $11) 25... Rc7 {[%emt 0:00:01]} 26. Rd1 {[%emt 0:01:16]} (26. Rxc7 $16 Qxc7 27. Nf4 Qc1+ 28. Kh2) 26... h6 {[%emt 0:00:46]} 27. Qf3 {[%emt 0:02:42]} Nc6 {[%emt 0:00:20]} 28. Qf4 {[%emt 0:00:44]} Kh7 {[%emt 0:00:12]} 29. Qa4 {[%emt 0:00:07]} a5 {[%emt 0:01:20]} 30. Qb5 {[%emt 0:00:35]} Qb8 {[%emt 0:00:03]} 31. f4 {[%emt 0:00:45]} Na7 {[%emt 0:00:46]} 32. Qa4 {[%emt 0:00:10]} Rc2 {[%emt 0:00:13]} 33. Ne1 {[%emt 0:00:28]} Rc3 {[%emt 0:00:16]} 34. Nf3 {[%emt 0:01:16]} (34. Qd4 $5 {[%cal Rd4c3]} Nb5 35. Qd2 $15) 34... Qc7 {[%emt 0:00:31]} (34... Qc8 $15) 35. Qe8 $11 {[%emt 0:01:41]} Kg7 {[%emt 0:00:39]} 36. Kh2 {[%emt 0:00:48] Black must now prevent g4.} Nc6 {[%emt 0:00:12]} 37. g4 {[%emt 0:00:22] Strongly threatening gxf5.} fxg4 {[%emt 0:00:51]} (37... Rxe3 $2 38. gxf5 $1 Nxe5 39. fxe5 $18 (39. f6+ $2 Kh7 $19)) 38. Rg1 $40 {[%emt 0:00:09][%mdl 128] Black needs to defend precisely.} h5 {[%emt 0:00:14] ...Qe7 is the strong threat.} (38... Rc2+ $2 39. Kh1 Nxe5 40. fxe5 $18 (40. Nxe5 Rc1 $16)) 39. hxg4 {[%emt 0:00:18][%cal Bh3g4,Bg4f5,Bf5g6][%mdl 32] Really sharp!} h4 {[%emt 0:00:01]} 40. Nxh4 {[%emt 0:00:12][%cal Oh4f5] Threatening mate with Nf5+!} Nxe5 {[%emt 0:00:59][%cal Oc3e3]} 41. Nf5+ {[%emt 0:00:12]} (41. fxe5 $2 Qxe5+ 42. Kh1 Qe4+ 43. Kh2 Qe5+ 44. Kh1 Qe4+ 45. Kh2 Qxe3 46. Nf5+ exf5 47. gxf5+ Kf6 48. Qd8+ Kxf5 49. Qxd5+ Qe5+ 50. Qxe5+ Kxe5 $19) ({Not} 41. g5 $2 Rxe3 42. Nf5+ exf5 $19) 41... exf5 {[%emt 0:00:14]} 42. gxf5+ {[%emt 0:00:01]} Ng6 $2 {[%emt 0:00:03][%mdl 8192] White stays focused until the end.} 43. fxg6 $18 {[%emt 0:00:38][%mdl 4096] Endgame KQR-KQR} f6 {[%emt 0:00:41]} 44. Rg3 $2 {[%emt 0:00:07]} (44. Kg3 {Intending Rh1 and mate.} d4 45. Rh1 (45. Kh4 Rxe3 46. Qf7+ Qxf7 $19) 45... Rxe3+ 46. Qxe3 $3 {[%mdl 512]} dxe3 47. Rh7+ Kxg6 48. Rxc7) 44... Rc2+ {[%emt 0:00:04] [#]} 45. Kh3 $1 {[%emt 0:00:01]} Qc8+ {[%emt 0:00:45]} 46. Qxc8 {[%emt 0:00:03]} Rxc8 {[%emt 0:00:01] KR-KR} 47. f5 {[%emt 0:00:06]} Rc2 $2 {[%emt 0:00:02]} (47... Re8 {is a better chance.} 48. Kg2 b5) 48. Kg4 {[%emt 0:00:31] White is clearly winning.} Rxa2 {[%emt 0:00:00]} (48... Rc1 $142 49. e4 dxe4) 49. Rh3 {[%emt 0:00:00] Hoping for Rh7+.} Rg2+ {[%emt 0:00:00]} 50. Kf3 {[%emt 0:00:00]} Rg5 {[%emt 0:00:05]} (50... Rc2 $142 51. Rh7+ Kg8) 51. Rh7+ {[%emt 0:00:03]} (51. Kf4 $142 Rg1 52. Rh7+ Kg8 53. Rf7) 51... Kg8 {[%emt 0:00:01]} 52. Kf4 {[%emt 0:00:01]} Rg1 {[%emt 0:00:02]} 53. Rf7 {[%emt 0:00:11]} Rf1+ {[%emt 0:00:05]} 54. Kg4 {[%emt 0:00:01]} Rg1+ {[%emt 0:00:12]} 55. Kh4 {[%emt 0:00:02]} Rh1+ {[%emt 0:00:04] [#]} 56. Kg3 $1 {[%emt 0:00:02]} Rb1 {[%emt 0:00:24]} 57. Rxf6 {[%emt 0:00:06]} Rxb3 {[%emt 0:00:01]} 58. Kf4 {[%emt 0:00:06] Weighted Error Value: White=0.30/Black=0.25 (precise)} 1-0

[Event "Czech Open-Rapid 2022"]
[Site "Pardubice"]
[Date "2022.07.21"]
[Round "4.2"]
[White "Dobrowolski, Piotr"]
[Black "Donchenko, Alexander"]
[Result "0-1"]
[ECO "B12"]
[WhiteElo "2423"]
[BlackElo "2640"]
[Annotator "TA"]
[PlyCount "42"]
[EventDate "2022.07.20"]
[EventType "swiss"]
[EventCountry "CZE"]
[SourceTitle "playchess.com"]
[Source "ChessBase"]
[SourceQuality "1"]
[TimeControl "1200+10"]

{[%evp 11,42,18,20,19,10,-12,-10,-11,-15,-16,0,0,0,0,0,0,0,0,0,-13,-17,-13,0,0,0,-52,-56,-528,-528,-29995,-56,-29996,-29997]} 1. e4 c6 {[%emt 0:00:01]} 2. d4 d5 3. e5 {[%emt 0:00:13]} Bf5 {[%emt 0:00:07]} 4. Nf3 {[%emt 0:00:02]} e6 {[%emt 0:00:02]} 5. Be2 {[%emt 0:00:02]} Ne7 {[%emt 0:00:19]} 6. O-O {[%emt 0:00:04]} c5 {[%emt 0:00:03] Recently 6...h6 got a lot of attention.} 7. Be3 {[%emt 0:00:30][%cal Bc1e3,Be3d4,Bd4c3][%mdl 32] B12: Caro-Kann: Advance Variation.} Nec6 {[%emt 0:00:29]} 8. c4 {[%emt 0:04:06]} cxd4 {[%emt 0:00:28]} 9. Nxd4 {[%emt 0:00:22] The position is equal.} Nxd4 {[%emt 0:00:04]} 10. Bxd4 {[%emt 0:00:33]} Nc6 {[%emt 0:00:45]} 11. cxd5 {[%emt 0:00:10]} Qxd5 {[%emt 0:00:04]} 12. Bf3 {[%emt 0:00:02]} Be4 {[%emt 0:00:02]} 13. Bxe4 {[%emt 0:01:08]} Qxe4 {[%emt 0:00:02]} 14. Bc3 {[%emt 0:00:01]} Be7 {[%emt 0:05:37]} (14... Nxe5 $2 15. Re1 Qd3 16. Bxe5 $18) 15. Qb3 {[%emt 0:01:18]} O-O-O {[%emt 0:00:45][%cal Ba8d8,Bd8d3,Bd3h3][%mdl 32]} 16. Nd2 {[%emt 0:00:56]} Qf5 {[%emt 0:02:24]} 17. Nc4 {[%emt 0:01:12] [#]} Kb8 $146 {[%emt 0:00:16]} ({Predecessor:} 17... Rd3 18. Qa4 Rhd8 19. Rac1 Kb8 20. Na5 Nxa5 21. Bxa5 b6 22. Rc6 R3d4 23. Qb5 Qe4 24. Bxb6 {1-0 (44) Prat Llables,J (2199)-Avila Jimenez,X (2220) Catalunya 2014}) 18. a4 {[%emt 0:01:55]} (18. Rad1 $11) 18... Rd3 $15 {[%emt 0:02:16] ...Nd4 is the strong threat.} 19. a5 $2 {[%emt 0:02:48][%mdl 8192]} ({White should try} 19. Qc2 $15) 19... Nd4 $19 {[%emt 0:00:32]} 20. Qa4 {[%emt 0:00:03] [#]} Ne2+ {[%emt 0:00:06]} 21. Kh1 {[%emt 0:00:02] [#]} Rh3 $3 {[%emt 0:00:02][%mdl 512] Weighted Error Value: White=0.99/Black=0.02 (flawless)} 0-1